Workbook

Sheet Contents
C1: Go to Charts by Pressing Shift and Enter on Menu Item
G2: Instructions at www.edbodmer.com
C3: Sheet Tab | D3: Description | E3: Author | G3: Questions: e-mail edwardbodmer@gmail.com
B4: 1 | C4: Contents
B5: 2 | C5: Cash Flow Model from ROIC
B6: 3 | C6: Amazon Stats
B7: 4 | C7: Valuation from Driver Formula
B8: 5 | C8: 2004-2014 Financial Statements
B10: File Name: | D10: =File_name() -> C:\Users\Monika Lewenski\Courses\Chapter 1. Models and Analysis\B. Project Finance Models and Exercises\D. Resolving Circular Refereces for Funding, Scultping and DSRA\Current Circular Reference Template1.xlsm
B12: Last Save Date | D12: =lastsaved() -> 10/5/2018 8:41:13 PM
B13: Last Save By | D13: =last_save_by() -> Elvis Presley
B15: Colour Codes

Sheet Cash Flow Model from ROIC
A1: Contents
B2: Period | F2: 2017 | G2: 2017 | H2: 2018 | I2: 2019 | J2: 2020 | K2: 2021 | L2: 2022 | M2: 2023 | N2: 2024 | O2: 2025 | P2: 2026 | Q2: 2027 | R2: 2028 | S2: 2029 | T2: 2030 | U2: 2031 | V2: 2032 | W2: 2033 | X2: 2034 | Y2: 2035 | Z2: 2036 | AA2: 2037
B3: Holding Period | E3: 19 | F3: =F2+E3 -> 2036 | G3: =G2<=$F$3 -> TRUE | H3: =H2<=$F$3 -> TRUE | I3: TRUE | J3: TRUE | K3: TRUE | L3: TRUE | M3: TRUE | N3: TRUE | O3: TRUE | P3: TRUE | Q3: TRUE | R3: TRUE | S3: TRUE | T3: TRUE | U3: TRUE | V3: TRUE | W3: TRUE | X3: TRUE | Y3: TRUE | Z3: TRUE | AA3: FALSE
B4: Terminal Period | E4: =E3 -> 19 | F4: =F3 -> 2036 | G4: =G2=$F$4 -> FALSE | H4: =H2=$F$4 -> FALSE | I4: FALSE | J4: FALSE | K4: FALSE | L4: FALSE | M4: FALSE | N4: FALSE | O4: FALSE | P4: FALSE | Q4: FALSE | R4: FALSE | S4: FALSE | T4: FALSE | U4: FALSE | V4: FALSE | W4: FALSE | X4: FALSE | Y4: FALSE | Z4: TRUE | AA4: FALSE
B6: Results: Enterprise Value | E6: =E108 -> 3007892896 | G6: EV | H6: =E6 -> 3007892896 | J6: Terminal EV | K6: =E104 -> 1.631433604e+10
B7: Less: EV to Equity Bridge | E7: =E31 -> 18739210.8 | G7: EBITDA | H7: =LOOKUP(G2,2:2,82:82) -> 13069958.12 | J7: Terminal EBITA | K7: =LOOKUP(F3,2:2,82:82) -> 1451788058
B8: Equity Value | E8: =E6-E7 -> 2989153685 | G8: EV/EBITDA | H8: =H6/H7 -> 230.1379139 | J8: EV/EBITDA | K8: =K6/K7 -> 11.23740889
B9: Equity Value per Share | E9: =E8/E32 -> 6128.580155
A11: Assumptions | E11: 2009 | F11: =F2 -> 2017 | G11: 2018 | H11: 2030 | I11: =F3+1 -> 2037
I12: Terminal
B13: ROIC Projected | F13: =E29 -> 0.07936620014 | G13: 0.12 | H13: 0.18 | I13: 0.12
B14: Cost of Capital | F14: 0.07 | G14: =F14 -> 0.07 | H14: =G14 -> 0.07 | I14: =H14 -> 0.07
B15: Growth | F15: 0.35 | G15: 0.3 | H15: 0.25 | I15: 0.04
B17: Partial Year Factor | E17: 0.5
B18: Depreciation Life | E18: 10 | K18: Instructions at www.edbodmer.com
B19: Tax Rate | E19: ='Amazon Stats'!E15 -> 0.2600095443 | K19: Questions: e-mail edwardbodmer@gmail.com
B20: Working Capital/Opening Plant Net | E20: 0.5
E22: Amount | F22: Pct
B23: Opening Net Plant | E23: ='Amazon Stats'!J23+'Amazon Stats'!J25 -> 65589999 | F23: =E23/E25 -> 1.220691752
B24: Opening WC and Other | E24: ='Amazon Stats'!J24 -> -11858171.22 | F24: =E24/E23 -> -0.1807923678
B25: Opening Invested Capital | E25: =SUM(E23:E24) -> 53731827.78 | F25: =E25/E25 -> 1
B27: Historic Year NOPAT | E27: ='Amazon Stats'!J20 -> 3280377.69
B28: Intial Year NOPAT Forecast | E28: ='Valuation from Driver Formula'!D8 -> 4264490.997
B29: Initial Year ROIC (Opening Balance) | E29: =E28/E25 -> 0.07936620014
B31: EV to Equity Bridge | E31: ='Amazon Stats'!E19 -> 18739210.8
B32: Shares in Valuation Year | E32: ='Amazon Stats'!E20 -> 487740
A34: Stable Depreciation Analysis
H35: Data Table with Alternative Growth
I36: =G2 -> 2017 | J36: =H11 -> 2030
B37: Growth | E37: =G15 -> 0.3 | I37: =G15 -> 0.3 | J37: =H15 -> 0.25
B38: Stable Cap Exp/Depreciation | E38: =LOOKUP(E18+1,42:42,48:48) -> 3.234634396 | H38: =E38 -> 3.234634396 | I38: 3.234634396 | J38: 2.800725624
B39: Depreciation to Net Plant | E39: =LOOKUP(E18+1,42:42,56:56) -> 0.1342501487 | H39: =E39 -> 0.1342501487 | I39: 0.1342501487 | J39: 0.1388329219
G42: 1 | H42: 2 | I42: 3 | J42: 4 | K42: 5 | L42: 6 | M42: 7 | N42: 8 | O42: 9 | P42: 10 | Q42: 11 | R42: 12 | S42: 13 | T42: 14 | U42: 15 | V42: 16 | W42: 17 | X42: 18 | Y42: 19 | Z42: 20 | AA42: 21 | AB42: 21 | AC42: 21 | AD42: 21 | AE42: 21 | AF42: 21 | AG42: 21 | AH42: 21 | AI42: 21 | AJ42: 21 | AK42: 21 | AL42: 21 | AM42: 21 | AN42: 21 | AO42: 21 | AP42: 21 | AQ42: 21 | AR42: 21 | AS42: 21 | AT42: 21 | AU42: 21 | AV42: 21 | AW42: 21 | AX42: 21 | AY42: 21 | AZ42: 21 | BA42: 21 | BB42: 21 | BC42: 21 | BD42: 21
B43: Opening Balance | G43: =F46 -> 0 | H43: =G46 -> 1 | I43: 2.3 | J43: 3.99 | K43: 6.187 | L43: 9.0431 | M43: 12.75603 | N43: 17.582839 | O43: 23.8576907 | P43: 32.01499791 | Q43: 42.61949728 | R43: 55.40534647 | S43: 72.02695041 | T43: 93.63503553 | U43: 121.7255462 | V43: 158.24321 | W43: 205.7161731 | X43: 267.431025 | Y43: 347.6603325 | Z43: 451.9584322 | AA43: 587.5459619 | AB43: =AA46 -> 763.8097504 | AC43: =AB46 -> 992.9526756 | AD43: =AC46 -> 1290.838478 | AE43: =AD46 -> 1678.090022 | AF43: =AE46 -> 2181.517028 | AG43: =AF46 -> 2835.972137 | AH43: =AG46 -> 3686.763778 | AI43: =AH46 -> 4792.792911 | AJ43: =AI46 -> 6230.630784 | AK43: =AJ46 -> 8099.82002 | AL43: =AK46 -> 10529.76603 | AM43: =AL46 -> 13688.69583 | AN43: =AM46 -> 17795.30458 | AO43: =AN46 -> 23133.89596 | AP43: =AO46 -> 30074.06475 | AQ43: =AP46 -> 39096.28417 | AR43: =AQ46 -> 50825.16942 | AS43: =AR46 -> 66072.72025 | AT43: =AS46 -> 85894.53632 | AU43: =AT46 -> 111662.8972 | AV43: =AU46 -> 145161.7664 | AW43: =AV46 -> 188710.2963 | AX43: =AW46 -> 245323.3852 | AY43: =AX46 -> 318920.4007 | AZ43: =AY46 -> 414596.521 | BA43: =AZ46 -> 538975.4772 | BB43: =BA46 -> 700668.1204 | BC43: =BB46 -> 910868.5565 | BD43: =BC46 -> 1184129.124
B44: Add: Capital Expenditures | E44: 1 | G44: =E44 -> 1 | H44: =G44*(1+$E$37) -> 1.3 | I44: 1.69 | J44: 2.197 | K44: 2.8561 | L44: 3.71293 | M44: 4.826809 | N44: 6.2748517 | O44: 8.15730721 | P44: 10.60449937 | Q44: 13.78584918 | R44: 17.92160394 | S44: 23.29808512 | T44: 30.28751066 | U44: 39.37376386 | V44: 51.18589301 | W44: 66.54166092 | X44: 86.50415919 | Y44: 112.455407 | Z44: 146.192029 | AA44: 190.0496377 | AB44: =AA44*(1+$E$37) -> 247.0645291 | AC44: 321.1838878 | AD44: 417.5390541 | AE44: 542.8007704 | AF44: 705.6410015 | AG44: 917.3333019 | AH44: 1192.533293 | AI44: 1550.29328 | AJ44: 2015.381264 | AK44: 2619.995644 | AL44: 3405.994337 | AM44: 4427.792638 | AN44: 5756.130429 | AO44: 7482.969558 | AP44: 9727.860425 | AQ44: 12646.21855 | AR44: 16440.08412 | AS44: 21372.10935 | AT44: 27783.74216 | AU44: 36118.86481 | AV44: 46954.52425 | AW44: 61040.88153 | AX44: 79353.14598 | AY44: 103159.0898 | AZ44: 134106.8167 | BA44: 174338.8617 | BB44: 226640.5202 | BC44: 294632.6763 | BD44: 383022.4792
B45: Less: Retirements | G45: =IF(G42>=$E$18,OFFSET(G44,0,-$E$18),0) -> 0 | H45: 0 | I45: 0 | J45: 0 | K45: 0 | L45: 0 | M45: 0 | N45: 0 | O45: 0 | P45: 0 | Q45: 1 | R45: 1.3 | S45: 1.69 | T45: 2.197 | U45: 2.8561 | V45: 3.71293 | W45: 4.826809 | X45: 6.2748517 | Y45: 8.15730721 | Z45: 10.60449937 | AA45: 13.78584918 | AB45: =IF(AB42>=$E$18,OFFSET(AB44,0,-$E$18),0) -> 17.92160394 | AC45: 23.29808512 | AD45: 30.28751066 | AE45: 39.37376386 | AF45: 51.18589301 | AG45: 66.54166092 | AH45: 86.50415919 | AI45: 112.455407 | AJ45: 146.192029 | AK45: 190.0496377 | AL45: 247.0645291 | AM45: 321.1838878 | AN45: 417.5390541 | AO45: 542.8007704 | AP45: 705.6410015 | AQ45: 917.3333019 | AR45: 1192.533293 | AS45: 1550.29328 | AT45: 2015.381264 | AU45: 2619.995644 | AV45: 3405.994337 | AW45: 4427.792638 | AX45: 5756.130429 | AY45: 7482.969558 | AZ45: 9727.860425 | BA45: 12646.21855 | BB45: 16440.08412 | BC45: 21372.10935 | BD45: 27783.74216
B46: Closing Balance | F46: 0 | G46: =G43+G44-G45 -> 1 | H46: =H43+H44-H45 -> 2.3 | I46: 3.99 | J46: 6.187 | K46: 9.0431 | L46: 12.75603 | M46: 17.582839 | N46: 23.8576907 | O46: 32.01499791 | P46: 42.61949728 | Q46: 55.40534647 | R46: 72.02695041 | S46: 93.63503553 | T46: 121.7255462 | U46: 158.24321 | V46: 205.7161731 | W46: 267.431025 | X46: 347.6603325 | Y46: 451.9584322 | Z46: 587.5459619 | AA46: 763.8097504 | AB46: =AB43+AB44-AB45 -> 992.9526756 | AC46: 1290.838478 | AD46: 1678.090022 | AE46: 2181.517028 | AF46: 2835.972137 | AG46: 3686.763778 | AH46: 4792.792911 | AI46: 6230.630784 | AJ46: 8099.82002 | AK46: 10529.76603 | AL46: 13688.69583 | AM46: 17795.30458 | AN46: 23133.89596 | AO46: 30074.06475 | AP46: 39096.28417 | AQ46: 50825.16942 | AR46: 66072.72025 | AS46: 85894.53632 | AT46: 111662.8972 | AU46: 145161.7664 | AV46: 188710.2963 | AW46: 245323.3852 | AX46: 318920.4007 | AY46: 414596.521 | AZ46: 538975.4772 | BA46: 700668.1204 | BB46: 910868.5565 | BC46: 1184129.124 | BD46: 1539367.861
B47: Depreciation | E47: =1/E18 -> 0.1 | G47: =G43*$E$47 -> 0 | H47: 0.1 | I47: 0.23 | J47: 0.399 | K47: 0.6187 | L47: 0.90431 | M47: 1.275603 | N47: 1.7582839 | O47: 2.38576907 | P47: 3.201499791 | Q47: 4.261949728 | R47: 5.540534647 | S47: 7.202695041 | T47: 9.363503553 | U47: 12.17255462 | V47: 15.824321 | W47: 20.57161731 | X47: 26.7431025 | Y47: 34.76603325 | Z47: 45.19584322 | AA47: 58.75459619 | AB47: =AB43*$E$47 -> 76.38097504 | AC47: 99.29526756 | AD47: 129.0838478 | AE47: 167.8090022 | AF47: 218.1517028 | AG47: 283.5972137 | AH47: 368.6763778 | AI47: 479.2792911 | AJ47: 623.0630784 | AK47: 809.982002 | AL47: 1052.976603 | AM47: 1368.869583 | AN47: 1779.530458 | AO47: 2313.389596 | AP47: 3007.406475 | AQ47: 3909.628417 | AR47: 5082.516942 | AS47: 6607.272025 | AT47: 8589.453632 | AU47: 11166.28972 | AV47: 14516.17664 | AW47: 18871.02963 | AX47: 24532.33852 | AY47: 31892.04007 | AZ47: 41459.6521 | BA47: 53897.54772 | BB47: 70066.81204 | BC47: 91086.85565 | BD47: 118412.9124
B48: Cap Exp to Depreciation | G48: =IF(G47,G44/G47) -> FALSE | H48: =IF(H47,H44/H47) -> 13 | I48: 7.347826087 | J48: 5.506265664 | K48: 4.616292226 | L48: 4.105815484 | M48: 3.783942967 | N48: 3.568736368 | O48: 3.419152051 | P48: 3.312353605 | Q48: 3.234634396 | R48: 3.234634396 | S48: 3.234634396 | T48: 3.234634396 | U48: 3.234634396 | V48: 3.234634396 | W48: 3.234634396 | X48: 3.234634396 | Y48: 3.234634396 | Z48: 3.234634396 | AA48: 3.234634396 | AB48: =IF(AB47,AB44/AB47) -> 3.234634396 | AC48: 3.234634396 | AD48: 3.234634396 | AE48: 3.234634396 | AF48: 3.234634396 | AG48: 3.234634396 | AH48: 3.234634396 | AI48: 3.234634396 | AJ48: 3.234634396 | AK48: 3.234634396 | AL48: 3.234634396 | AM48: 3.234634396 | AN48: 3.234634396 | AO48: 3.234634396 | AP48: 3.234634396 | AQ48: 3.234634396 | AR48: 3.234634396 | AS48: 3.234634396 | AT48: 3.234634396 | AU48: 3.234634396 | AV48: 3.234634396 | AW48: 3.234634396 | AX48: 3.234634396 | AY48: 3.234634396 | AZ48: 3.234634396 | BA48: 3.234634396 | BB48: 3.234634396 | BC48: 3.234634396 | BD48: 3.234634396
B50: Accum Depr
B51: Opening Balance | G51: =F54 -> 0 | H51: =G54 -> 0 | I51: 0.1 | J51: 0.33 | K51: 0.729 | L51: 1.3477 | M51: 2.25201 | N51: 3.527613 | O51: 5.2858969 | P51: 7.67166597 | Q51: 10.87316576 | R51: 14.13511549 | S51: 18.37565014 | T51: 23.88834518 | U51: 31.05484873 | V51: 40.37130335 | W51: 52.48269435 | X51: 68.22750266 | Y51: 88.69575346 | Z51: 115.3044795 | AA51: 149.8958233 | AB51: =AA54 -> 194.8645703 | AC51: =AB54 -> 253.3239415 | AD51: =AC54 -> 329.3211239 | AE51: =AD54 -> 428.1174611 | AF51: =AE54 -> 556.5526994 | AG51: =AF54 -> 723.5185092 | AH51: =AG54 -> 940.5740619 | AI51: =AH54 -> 1222.746281 | AJ51: =AI54 -> 1589.570165 | AK51: =AJ54 -> 2066.441214 | AL51: =AK54 -> 2686.373578 | AM51: =AL54 -> 3492.285652 | AN51: =AM54 -> 4539.971347 | AO51: =AN54 -> 5901.962751 | AP51: =AO54 -> 7672.551577 | AQ51: =AP54 -> 9974.31705 | AR51: =AQ54 -> 12966.61216 | AS51: =AR54 -> 16856.59581 | AT51: =AS54 -> 21913.57456 | AU51: =AT54 -> 28487.64693 | AV51: =AU54 -> 37033.941 | AW51: =AV54 -> 48144.12331 | AX51: =AW54 -> 62587.3603 | AY51: =AX54 -> 81363.56839 | AZ51: =AY54 -> 105772.6389 | BA51: =AZ54 -> 137504.4306 | BB51: =BA54 -> 178755.7597 | BC51: =BB54 -> 232382.4877 | BD51: =BC54 -> 302097.234
B52: Add: Depreciation Expense | G52: =G47 -> 0 | H52: =H47 -> 0.1 | I52: 0.23 | J52: 0.399 | K52: 0.6187 | L52: 0.90431 | M52: 1.275603 | N52: 1.7582839 | O52: 2.38576907 | P52: 3.201499791 | Q52: 4.261949728 | R52: 5.540534647 | S52: 7.202695041 | T52: 9.363503553 | U52: 12.17255462 | V52: 15.824321 | W52: 20.57161731 | X52: 26.7431025 | Y52: 34.76603325 | Z52: 45.19584322 | AA52: 58.75459619 | AB52: =AB47 -> 76.38097504 | AC52: 99.29526756 | AD52: 129.0838478 | AE52: 167.8090022 | AF52: 218.1517028 | AG52: 283.5972137 | AH52: 368.6763778 | AI52: 479.2792911 | AJ52: 623.0630784 | AK52: 809.982002 | AL52: 1052.976603 | AM52: 1368.869583 | AN52: 1779.530458 | AO52: 2313.389596 | AP52: 3007.406475 | AQ52: 3909.628417 | AR52: 5082.516942 | AS52: 6607.272025 | AT52: 8589.453632 | AU52: 11166.28972 | AV52: 14516.17664 | AW52: 18871.02963 | AX52: 24532.33852 | AY52: 31892.04007 | AZ52: 41459.6521 | BA52: 53897.54772 | BB52: 70066.81204 | BC52: 91086.85565 | BD52: 118412.9124
B53: Less: Retirements | G53: =G45 -> 0 | H53: =H45 -> 0 | I53: 0 | J53: 0 | K53: 0 | L53: 0 | M53: 0 | N53: 0 | O53: 0 | P53: 0 | Q53: 1 | R53: 1.3 | S53: 1.69 | T53: 2.197 | U53: 2.8561 | V53: 3.71293 | W53: 4.826809 | X53: 6.2748517 | Y53: 8.15730721 | Z53: 10.60449937 | AA53: 13.78584918 | AB53: =AB45 -> 17.92160394 | AC53: 23.29808512 | AD53: 30.28751066 | AE53: 39.37376386 | AF53: 51.18589301 | AG53: 66.54166092 | AH53: 86.50415919 | AI53: 112.455407 | AJ53: 146.192029 | AK53: 190.0496377 | AL53: 247.0645291 | AM53: 321.1838878 | AN53: 417.5390541 | AO53: 542.8007704 | AP53: 705.6410015 | AQ53: 917.3333019 | AR53: 1192.533293 | AS53: 1550.29328 | AT53: 2015.381264 | AU53: 2619.995644 | AV53: 3405.994337 | AW53: 4427.792638 | AX53: 5756.130429 | AY53: 7482.969558 | AZ53: 9727.860425 | BA53: 12646.21855 | BB53: 16440.08412 | BC53: 21372.10935 | BD53: 27783.74216
B54: Closing Balance | G54: =G51+G52-G53 -> 0 | H54: =H51+H52-H53 -> 0.1 | I54: 0.33 | J54: 0.729 | K54: 1.3477 | L54: 2.25201 | M54: 3.527613 | N54: 5.2858969 | O54: 7.67166597 | P54: 10.87316576 | Q54: 14.13511549 | R54: 18.37565014 | S54: 23.88834518 | T54: 31.05484873 | U54: 40.37130335 | V54: 52.48269435 | W54: 68.22750266 | X54: 88.69575346 | Y54: 115.3044795 | Z54: 149.8958233 | AA54: 194.8645703 | AB54: =AB51+AB52-AB53 -> 253.3239415 | AC54: 329.3211239 | AD54: 428.1174611 | AE54: 556.5526994 | AF54: 723.5185092 | AG54: 940.5740619 | AH54: 1222.746281 | AI54: 1589.570165 | AJ54: 2066.441214 | AK54: 2686.373578 | AL54: 3492.285652 | AM54: 4539.971347 | AN54: 5901.962751 | AO54: 7672.551577 | AP54: 9974.31705 | AQ54: 12966.61216 | AR54: 16856.59581 | AS54: 21913.57456 | AT54: 28487.64693 | AU54: 37033.941 | AV54: 48144.12331 | AW54: 62587.3603 | AX54: 81363.56839 | AY54: 105772.6389 | AZ54: 137504.4306 | BA54: 178755.7597 | BB54: 232382.4877 | BC54: 302097.234 | BD54: 392726.4042
B55: Net Plant | G55: =G43-G51 -> 0 | H55: =H43-H51 -> 1 | I55: 2.2 | J55: 3.66 | K55: 5.458 | L55: 7.6954 | M55: 10.50402 | N55: 14.055226 | O55: 18.5717938 | P55: 24.34333194 | Q55: 31.74633152 | R55: 41.27023098 | S55: 53.65130027 | T55: 69.74669035 | U55: 90.67069746 | V55: 117.8719067 | W55: 153.2334787 | X55: 199.2035223 | Y55: 258.964579 | Z55: 336.6539527 | AA55: 437.6501385 | AB55: =AB43-AB51 -> 568.9451801 | AC55: 739.6287341 | AD55: 961.5173544 | AE55: 1249.972561 | AF55: 1624.964329 | AG55: 2112.453628 | AH55: 2746.189716 | AI55: 3570.046631 | AJ55: 4641.06062 | AK55: 6033.378806 | AL55: 7843.392447 | AM55: 10196.41018 | AN55: 13255.33324 | AO55: 17231.93321 | AP55: 22401.51317 | AQ55: 29121.96712 | AR55: 37858.55726 | AS55: 49216.12443 | AT55: 63980.96176 | AU55: 83175.25029 | AV55: 108127.8254 | AW55: 140566.173 | AX55: 182736.0249 | AY55: 237556.8324 | AZ55: 308823.8821 | BA55: 401471.0467 | BB55: 521912.3607 | BC55: 678486.0689 | BD55: 882031.8895
B56: Depreciation to Net Plant | G56: =IF(G55,G47/G55) -> FALSE | H56: =IF(H55,H47/H55) -> 0.1 | I56: 0.1045454545 | J56: 0.1090163934 | K56: 0.1133565409 | L56: 0.1175130597 | M56: 0.121439506 | N56: 0.1250982304 | O56: 0.128461962 | P56: 0.1315144451 | Q56: 0.1342501487 | R56: 0.1342501487 | S56: 0.1342501487 | T56: 0.1342501487 | U56: 0.1342501487 | V56: 0.1342501487 | W56: 0.1342501487 | X56: 0.1342501487 | Y56: 0.1342501487 | Z56: 0.1342501487 | AA56: 0.1342501487 | AB56: =IF(AB55,AB47/AB55) -> 0.1342501487 | AC56: 0.1342501487 | AD56: 0.1342501487 | AE56: 0.1342501487 | AF56: 0.1342501487 | AG56: 0.1342501487 | AH56: 0.1342501487 | AI56: 0.1342501487 | AJ56: 0.1342501487 | AK56: 0.1342501487 | AL56: 0.1342501487 | AM56: 0.1342501487 | AN56: 0.1342501487 | AO56: 0.1342501487 | AP56: 0.1342501487 | AQ56: 0.1342501487 | AR56: 0.1342501487 | AS56: 0.1342501487 | AT56: 0.1342501487 | AU56: 0.1342501487 | AV56: 0.1342501487 | AW56: 0.1342501487 | AX56: 0.1342501487 | AY56: 0.1342501487 | AZ56: 0.1342501487 | BA56: 0.1342501487 | BB56: 0.1342501487 | BC56: 0.1342501487 | BD56: 0.1342501487
B58: Investment Balance
C59: Growth Rate Change
C60: Cap Exp to Depreciation (Interpolate) | G60: =interpolate_look_up(G2,36:36,38:38) -> 3.234634396 | H60: =interpolate_look_up(H2,36:36,38:38) -> 3.198993115 | I60: 3.163744552 | J60: 3.12888438 | K60: 3.094408321 | L60: 3.06031214 | M60: 3.026591654 | N60: 2.993242721 | O60: 2.960261248 | P60: 2.927643187 | Q60: 2.895384532 | R60: 2.863481324 | S60: 2.831929646 | T60: 2.800725624 | U60: 2.800725624 | V60: 2.800725624 | W60: 2.800725624 | X60: 2.800725624 | Y60: 2.800725624 | Z60: 2.800725624 | AA60: 2.800725624
C61: Net Plant Depreciation Rate (Interpolate) | G61: =interpolate_look_up(G2,36:36,39:39) -> 0.1342501487 | H61: =interpolate_look_up(H2,36:36,39:39) -> 0.1345972343 | I61: 0.1349452172 | J61: 0.1352940998 | K61: 0.1356438844 | L61: 0.1359945733 | M61: 0.1363461689 | N61: 0.1366986735 | O61: 0.1370520894 | P61: 0.137406419 | Q61: 0.1377616647 | R61: 0.1381178288 | S61: 0.1384749138 | T61: 0.1388329219 | U61: 0.1388329219 | V61: 0.1388329219 | W61: 0.1388329219 | X61: 0.1388329219 | Y61: 0.1388329219 | Z61: 0.1388329219 | AA61: 0.1388329219
A63: NOPAT and Free Cash Flow
B64: Plant Balance
C65: Opening Balance | G65: =F68 -> 65589999 | H65: =G68 -> 85266998.7 | I65: =H68 -> 110504187.8 | J65: 142769971.7 | K65: 183891363.7 | L65: 236133737.9 | M65: 302296349.9 | N65: 385826275.2 | O65: 490953763.2 | P65: 622852370.1 | Q65: 787827618.3 | R65: 993538334.2 | S65: 1249255225 | T65: 1566161668 | U65: 1957702085 | V65: 2447127607 | W65: 3058909508 | X65: 3823636885 | Y65: 4779546107 | Z65: 5974432633 | AA65: 7468040792
C66: Add: Capital Expenditures | G66: =G67*G60 -> 28482466.82 | H66: 36713891.33 | I66: 47177795.56 | J66: 60437326.73 | K66: 77186113.14 | L66: 98275518.96 | M66: 124746874.4 | N66: 157869428 | O66: 199184845.9 | P66: 250559162 | Q66: 314243160.1 | R66: 392942248.6 | S66: 489896952.6 | T66: 608975217.7 | U66: 761219022.1 | V66: 951523777.6 | W66: 1189404722 | X66: 1486755903 | Y66: 1858444878 | Z66: 2323056098 | AA66: 2903820122
C67: Less: Depreciation | G67: =G65*G61 -> 8805467.121 | H67: 11476702.2 | I67: 14912011.63 | J67: 19315934.81 | K67: 24943738.88 | L67: 32112906.94 | M67: 41216949.19 | N67: 52741940 | O67: 67286239.03 | P67: 85583913.74 | Q67: 108532444.2 | R67: 137225357.6 | S67: 172990509.6 | T67: 217434800.6 | U67: 271793500.8 | V67: 339741876 | W67: 424677345 | X67: 530846681.2 | Y67: 663558351.5 | Z67: 829447939.4 | AA67: 1036809924
C68: Closing Plant Balance | F68: =E23 -> 65589999 | G68: =G65+G66-G67 -> 85266998.7 | H68: =H65+H66-H67 -> 110504187.8 | I68: 142769971.7 | J68: 183891363.7 | K68: 236133737.9 | L68: 302296349.9 | M68: 385826275.2 | N68: 490953763.2 | O68: 622852370.1 | P68: 787827618.3 | Q68: 993538334.2 | R68: 1249255225 | S68: 1566161668 | T68: 1957702085 | U68: 2447127607 | V68: 3058909508 | W68: 3823636885 | X68: 4779546107 | Y68: 5974432633 | Z68: 7468040792 | AA68: 9335050989
C70: WC and Other as Pct of Plant | E70: =F24 -> -0.1807923678 | G70: =$E$70 -> -0.1807923678 | H70: =$E$70 -> -0.1807923678 | I70: -0.1807923678 | J70: -0.1807923678 | K70: -0.1807923678 | L70: -0.1807923678 | M70: -0.1807923678 | N70: -0.1807923678 | O70: -0.1807923678 | P70: -0.1807923678 | Q70: -0.1807923678 | R70: -0.1807923678 | S70: -0.1807923678 | T70: -0.1807923678 | U70: -0.1807923678 | V70: -0.1807923678 | W70: -0.1807923678 | X70: -0.1807923678 | Y70: -0.1807923678 | Z70: -0.1807923678 | AA70: -0.1807923678
C71: WC and Other Balance Closing | F71: =E24 -> -11858171.22 | G71: =G70*G68 -> -15415622.59 | H71: -19978313.77 | I71: -25811721.24 | J71: -33246155.05 | K71: -42691177.59 | L71: -54652872.88 | M71: -69754445.84 | N71: -88760693.31 | O71: -112606954.8 | P71: -142433220.5 | Q71: -179624147.9 | R71: -225855810.1 | S71: -283150076.3 | T71: -353937595.4 | U71: -442421994.3 | V71: -553027492.8 | W71: -691284366 | X71: -864105457.5 | Y71: -1080131822 | Z71: -1350164777 | AA71: -1687705972
C72: Change in WC and Other | G72: =G71-F71 -> -3557451.367 | H72: =H71-G71 -> -4562691.178 | I72: -5833407.474 | J72: -7434433.811 | K72: -9445022.541 | L72: -11961695.29 | M72: -15101572.96 | N72: -19006247.47 | O72: -23846261.45 | P72: -29826265.75 | Q72: -37190927.41 | R72: -46231662.21 | S72: -57294266.19 | T72: -70787519.08 | U72: -88484398.85 | V72: -110605498.6 | W72: -138256873.2 | X72: -172821091.5 | Y72: -216026364.4 | Z72: -270032955.5 | AA72: -337541194.4
C74: Invested Capital Including WC and Other | F74: =E25 -> 53731827.78 | G74: =G65+F71 -> 53731827.78 | H74: =H65+G71 -> 69851376.11 | I74: 90525874.06 | J74: 116958250.5 | K74: 150645208.6 | L74: 193442560.3 | M74: 247643477.1 | N74: 316071829.3 | O74: 402193069.8 | P74: 510245415.3 | Q74: 645394397.8 | R74: 813914186.3 | S74: 1023399415 | T74: 1283011592 | U74: 1603764490 | V74: 2004705612 | W74: 2505882015 | X74: 3132352519 | Y74: 3915440649 | Z74: 4894300811 | AA74: 6117876014
C76: ROIC on Opening Investment | G76: =interpolate_look_up(G2,11:11,13:13) -> 0.07936620014 | H76: 0.12 | I76: 0.12412393 | J76: 0.1283895833 | K76: 0.1328018304 | L76: 0.1373657091 | M76: 0.1420864305 | N76: 0.1469693846 | O76: 0.1520201467 | P76: 0.1572444837 | Q76: 0.1626483606 | R76: 0.1682379477 | S76: 0.174019627 | T76: 0.18 | U76: 0.1698699703 | V76: 0.1603100379 | W76: 0.1512881188 | X76: 0.1427739347 | Y76: 0.1347389114 | Z76: 0.1271560827 | AA76: 0.12
C78: NOPAT | G78: =G76*G74 -> 4264490.997 | H78: =H76*H74 -> 8382165.133 | I78: 11236427.25 | J78: 15016221.04 | K78: 20005959.44 | L78: 26572374.47 | M78: 35186777.69 | N78: 46452882.23 | O78: 61141449.46 | P78: 80233276.87 | Q78: 104972340.8 | R78: 136931252.3 | S78: 178091584.5 | T78: 230942086.5 | U78: 272431426.3 | V78: 321374432.7 | W78: 379110176 | X78: 447218294.2 | Y78: 527562210.9 | Z78: 622340118.8 | AA78: 734145121.7
C79: Tax Rate | E79: =E19 -> 0.2600095443 | G79: =$E$79 -> 0.2600095443 | H79: =$E$79 -> 0.2600095443 | I79: 0.2600095443 | J79: 0.2600095443 | K79: 0.2600095443 | L79: 0.2600095443 | M79: 0.2600095443 | N79: 0.2600095443 | O79: 0.2600095443 | P79: 0.2600095443 | Q79: 0.2600095443 | R79: 0.2600095443 | S79: 0.2600095443 | T79: 0.2600095443 | U79: 0.2600095443 | V79: 0.2600095443 | W79: 0.2600095443 | X79: 0.2600095443 | Y79: 0.2600095443 | Z79: 0.2600095443 | AA79: 0.2600095443
C80: EBIT =NOPAT/(1-t) | G80: =G78/(1-G79) -> 5762900 | H80: =H78/(1-H79) -> 11327396.28 | I80: 15184557 | J80: 20292452.32 | K80: 27035429.02 | L80: 35909077.29 | M80: 47550312.87 | N80: 62774974.83 | O80: 82624646.02 | P80: 108424745.5 | Q80: 141856344.2 | R80: 185044619.5 | S80: 240667407.4 | T80: 312087925.9 | U80: 368155324.4 | V80: 434295375.3 | W80: 512317656.4 | X80: 604356840.9 | Y80: 712931101.7 | Z80: 841011007.6 | AA80: 992100798.1
C81: Add: Depreciation | G81: =G67 -> 8805467.121 | H81: 11476702.2 | I81: 14912011.63 | J81: 19315934.81 | K81: 24943738.88 | L81: 32112906.94 | M81: 41216949.19 | N81: 52741940 | O81: 67286239.03 | P81: 85583913.74 | Q81: 108532444.2 | R81: 137225357.6 | S81: 172990509.6 | T81: 217434800.6 | U81: 271793500.8 | V81: 339741876 | W81: 424677345 | X81: 530846681.2 | Y81: 663558351.5 | Z81: 829447939.4 | AA81: 1036809924
C82: EBITDA | G82: =G78+G81 -> 13069958.12 | H82: 19858867.34 | I82: 26148438.88 | J82: 34332155.86 | K82: 44949698.32 | L82: 58685281.41 | M82: 76403726.87 | N82: 99194822.23 | O82: 128427688.5 | P82: 165817190.6 | Q82: 213504785 | R82: 274156609.9 | S82: 351082094.1 | T82: 448376887.2 | U82: 544224927.1 | V82: 661116308.7 | W82: 803787521 | X82: 978064975.4 | Y82: 1191120562 | Z82: 1451788058 | AA82: 1770955046
C83: Less: Cap Exp | G83: =G66 -> 28482466.82 | H83: 36713891.33 | I83: 47177795.56 | J83: 60437326.73 | K83: 77186113.14 | L83: 98275518.96 | M83: 124746874.4 | N83: 157869428 | O83: 199184845.9 | P83: 250559162 | Q83: 314243160.1 | R83: 392942248.6 | S83: 489896952.6 | T83: 608975217.7 | U83: 761219022.1 | V83: 951523777.6 | W83: 1189404722 | X83: 1486755903 | Y83: 1858444878 | Z83: 2323056098 | AA83: 2903820122
C84: Less: Change in WC | G84: =G72 -> -3557451.367 | H84: =H72 -> -4562691.178 | I84: -5833407.474 | J84: -7434433.811 | K84: -9445022.541 | L84: -11961695.29 | M84: -15101572.96 | N84: -19006247.47 | O84: -23846261.45 | P84: -29826265.75 | Q84: -37190927.41 | R84: -46231662.21 | S84: -57294266.19 | T84: -70787519.08 | U84: -88484398.85 | V84: -110605498.6 | W84: -138256873.2 | X84: -172821091.5 | Y84: -216026364.4 | Z84: -270032955.5 | AA84: -337541194.4
C85: Less: Taxes on EBIT | G85: =G80*G79 -> 1498409.003 | H85: =H80*H79 -> 2945231.144 | I85: 3948129.745 | J85: 5276231.281 | K85: 7029469.578 | L85: 9336702.822 | M85: 12363535.18 | N85: 16322092.6 | O85: 21483196.56 | P85: 28191468.67 | Q85: 36884003.4 | R85: 48113367.19 | S85: 62575822.93 | T85: 81145839.39 | U85: 95723898.13 | V85: 112920942.6 | W85: 133207480.4 | X85: 157138546.8 | Y85: 185368890.8 | Z85: 218670888.8 | AA85: 257955676.4
C86: FCF | G86: =G82-G83-G84-G85 -> -13353466.34 | H86: =H82-H83-H84-H85 -> -15237563.96 | I86: -19144078.94 | J86: -23946968.34 | K86: -29820861.86 | L86: -36965245.09 | M86: -45605109.74 | N86: -55990450.89 | O86: -68394092.56 | P86: -83107174.27 | Q86: -100431451.2 | R86: -120667343.7 | S86: -144096415.2 | T86: -170956650.8 | U86: -224233594.3 | V86: -292722913 | W86: -380567808.2 | X86: -493008382.4 | Y86: -636666842.2 | Z86: -819905972.8 | AA86: -1053279558
C88: FCF Growth | H88: =H86/G86-1 -> 0.1410942724 | I88: =I86/H86-1 -> 0.2563739847 | J88: 0.2508811947 | K88: 0.2452875634 | L88: 0.2395766852 | M88: 0.2337294026 | N88: 0.2277231917 | O88: 0.2215313768 | P88: 0.2151221131 | Q88: 0.208457056 | R88: 0.2014895959 | S88: 0.1941624869 | T88: 0.1864046069 | U88: 0.3116400748 | V88: 0.3054373674 | W88: 0.3000957263 | X88: 0.2954547701 | Y88: 0.2913915157 | Z88: 0.2878100734 | AA88: 0.2846345717
C89: NOPAT Growth | H89: =H78/G78-1 -> 0.9655722426 | I89: 0.3405160926 | J89: 0.3363875105 | K89: 0.3322898872 | L89: 0.3282229503 | M89: 0.3241864301 | N89: 0.3201800587 | O89: 0.3162035706 | P89: 0.3122567027 | Q89: 0.3083391938 | R89: 0.3044507851 | S89: 0.3005912199 | T89: 0.2967602437 | U89: 0.1796525718 | V89: 0.1796525718 | W89: 0.1796525718 | X89: 0.1796525718 | Y89: 0.1796525718 | Z89: 0.1796525718 | AA89: 0.1796525718
C90: Investment Growth | H90: =H68/G68-1 -> 0.2959783915 | I90: 0.2919869786 | J90: 0.2880254959 | K90: 0.2840936802 | L90: 0.2801912705 | M90: 0.2763180079 | N90: 0.2724736358 | O90: 0.2686578998 | P90: 0.2648705474 | Q90: 0.2611113284 | R90: 0.2573799945 | S90: 0.2536762997 | T90: 0.25 | U90: 0.25 | V90: 0.25 | W90: 0.25 | X90: 0.25 | Y90: 0.25 | Z90: 0.25 | AA90: 0.25
C91: Cap Exp Growth | H91: =H66/G66-1 -> 0.2889997049 | I91: 0.2850121263 | J91: 0.2810544878 | K91: 0.2771265262 | L91: 0.2732279806 | M91: 0.2693585922 | N91: 0.2655181043 | O91: 0.2617062624 | P91: 0.2579228142 | Q91: 0.2541675095 | R91: 0.2504401001 | S91: 0.2467403399 | T91: 0.2430679849 | U91: 0.25 | V91: 0.25 | W91: 0.25 | X91: 0.25 | Y91: 0.25 | Z91: 0.25 | AA91: 0.25
C92: Working Capital Growth | H92: =H71/G71-1 -> 0.2959783915 | I92: =I71/H71-1 -> 0.2919869786 | J92: 0.2880254959 | K92: 0.2840936802 | L92: 0.2801912705 | M92: 0.2763180079 | N92: 0.2724736358 | O92: 0.2686578998 | P92: 0.2648705474 | Q92: 0.2611113284 | R92: 0.2573799945 | S92: 0.2536762997 | T92: 0.25 | U92: 0.25 | V92: 0.25 | W92: 0.25 | X92: 0.25 | Y92: 0.25 | Z92: 0.25 | AA92: 0.25
B94: Valuation
C95: Period | G95: 1 | H95: 2 | I95: 3 | J95: 4 | K95: 5 | L95: 6 | M95: 7 | N95: 8 | O95: 9 | P95: 10 | Q95: 11 | R95: 12 | S95: 13 | T95: 14 | U95: 15 | V95: 16 | W95: 17 | X95: 18 | Y95: 19 | Z95: 20 | AA95: 21
C96: PV Factor End of Year | E96: =F14 -> 0.07 | G96: =1/(1+$E$96)^G95 -> 0.9345794393 | H96: =1/(1+$E$96)^H95 -> 0.8734387283 | I96: 0.8162978769 | J96: 0.762895212 | K96: 0.7129861795 | L96: 0.6663422238 | M96: 0.6227497419 | N96: 0.5820091046 | O96: 0.5439337426 | P96: 0.5083492921 | Q96: 0.4750927964 | R96: 0.4440119592 | S96: 0.4149644479 | T96: 0.387817241 | U96: 0.3624460196 | V96: 0.3387345978 | W96: 0.3165743905 | X96: 0.2958639163 | Y96: 0.276508333 | Z96: 0.2584190028 | AA96: 0.2415130867
C97: PV of Cash Flow Over Explicit Period | E97: =SUMPRODUCT(G96:AA96*G86:AA86*G3:AA3) -> -1308094633
C98: PV of Explicit Cash Flow with Half Year Adj | E98: =E97*(1+E96)^part_yr_fac -> -1353103610
B100: Value Driver with Terminal Value with Book Value
C101: BV Terminal | E101: =SUMIF(2:2,F3+1,74:74) -> 6117876014
C102: Terminal ROIC | E102: =LOOKUP(F3+1,11:11,13:13) -> 0.12
C103: Terminal Growth | E103: =LOOKUP(F3+1,11:11,15:15) -> 0.04
C104: Value Driver Formula from BV x ROIC | E104: =E101*E102*(1-E103/E102)/(E96-E103) -> 1.631433604e+10
C105: PV Factor | E105: =LOOKUP(F3,2:2,96:96) -> 0.2584190028
C106: PV of Terminal EV | E106: =E104*E105*(1+E96)^part_yr_fac -> 4360996505
C108: Total Enterprise Value with Explicit CF | E108: =E106+E98 -> 3007892896
B110: Value Driver with Terminal NOPAT
C111: NOPAT in Terminal Year | E111: =LOOKUP(F3,2:2,78:78) -> 622340118.8
C112: Terminal Growth | E112: =E103 -> 0.04
C113: NOPAT with Growth | E113: =E111*(1+E112) -> 647233723.6
C114: Value Driver Formula from NOPAT | E114: =E113*(1-E112/E102)/(E96-E112) -> 1.438297163e+10
C115: PV Factor | E115: =E105 -> 0.2584190028
C116: PV of Terminal Value | E116: =E115*E114*(1+E96)^part_yr_fac -> 3844722145
C118: Total Enterprise Value | E118: =E116+E98 -> 2491618535

Sheet Amazon Stats
A1: Contents | B1: Amazon Stats | C1: Amazon
E2: 1 Year | F2: 5 Year | H2: Yahoo | J2: EPS
C3: Expected Growth | E3: 0.462 | F3: 0.4593 | H3: Current Quarters Estimate: | J3: 3.05 | N3: Instructions at www.edbodmer.com
C4: Past Growth | F4: 0.6612 | H4: Current Year's Estimate: | J4: 17.17 | N4: Questions: e-mail edwardbodmer@gmail.com
H5: Next Fiscal Year Estimate: | J5: 25.4
C6: Dividend Yield | E6: N/A
C7: Dividend Payout | E7: 0 | H7: Market Watch
C8: Historic ROE | E8: 0.1291 | H8: Fiscal year is January-December. All values USD millions.
C9: Forward ROE | E9: 0.3530475925 | J9: Revenue | K9: EPS
C10: Stock Price | E10: 2016 | H10: Current Qtr. (Sep 2018) | J10: 57040000 | K10: 3.11
H11: Next Qtr. (Dec 2018) | J11: 73800000 | K11: 5.99
H12: Current Year (2018) | J12: 234900000 | K12: 17.35
C13: ROIC Reported | E13: 0.0606 | H13: Next Year (2019) | J13: 286480000 | K13: 25.37
C14: Depreciation Rate | E14: 0.1593991541
C15: Tax Rate | E15: 0.2600095443 | H15: Growth Rate - 2019 | J15: 0.2195828012 | K15: 0.4622478386
C16: EBITDA | E16: 20630000
C17: Enterprise Value | E17: 995380032 | H17: Historic | J17: 2017-12-31
H18: EBITDA | J18: 26065649.29
C19: Net Debt | E19: 18739210.8 | H19: Operating Income | J19: 4433000
C20: Shares | E20: 487740 | H20: NOPAT | J20: 3280377.69
C21: Net Debt to Mkt Cap | E21: 0.01918822109
H22: Invested Capital | J22: 53731827.78
C23: Invested Capital/Share | E23: 110.1648989 | H23: Net Plant | J23: 48870000
H24: Working Capital | J24: -11858171.22
H25: Goodwill | J25: 16719999
H26: ROIC | J26: 0.06105092319

Sheet Valuation from Driver Formula
A1: Contents | B1: Valuation from Driver Formula
C3: Growth | D3: 0.05
C4: ROIC | D4: 0.3
C5: WACC | D5: 0.07
C7: NOPAT (2017) | D7: ='Amazon Stats'!J20 -> 3280377.69
C8: NOPAT Estimated | D8: =D7*1.3 -> 4264490.997
C9: Invested Capital (EOY 2009) | D9: ='Amazon Stats'!J22 -> 53731827.78
C11: Total Invested Capital | D11: =D9 -> 53731827.78
C12: Less: Equity
C13: EV to Equity Bridge | D13: ='Amazon Stats'!E19 -> 18739210.8
C15: Enterprise Value | D15: =D7*(1-D3/D4)/(D5-D3) -> 136682403.8 | F15: NOPAT x (1-g/ROIC)/(WACC-g)
C16: Less: EV to Equity Bridge | D16: =D13 -> 18739210.8
C17: Equity Value | D17: =D15-D16 -> 117943193
C19: Number of Shares | D19: ='Amazon Stats'!E20 -> 487740
C20: Equity Value per Share | D20: =D17/D19 -> 241.8157071

Sheet Scenario Output
D1: Row with Links | E1: =ROW(Q12) -> 12 | H1: Instructions at www.edbodmer.com
D2: Scenario Number Column | E2: =COLUMN(C:C) -> 3 | H2: Questions: e-mail edwardbodmer@gmail.com
D3: Scenario Name Column | E3: =COLUMN(D:D) -> 4
D4: Base Address | E4: =ADDRESS(E1,E2) -> $C$12 | H4: Instructions:
D5: Column Scenario Number | E5: =MID(E4,2,1) -> C | H5: All you have to do is to copy this sheet into your model (with ALT, E, M)
D6: Scenario Sheet Name | E6: Scenario Output | H6: This file has to be open and available (like generic macros)
E7: =MID(CELL("filename"),FIND("]",CELL("filename"),1)+1,250) -> Summary Waterfall | H7: When you open your model, this file should open as well
H8: You may have to copy and paste special the sheet name
C11: No | D11: Name | E11: ='Cash Flow Model from ROIC'!B9 -> Equity Value per Share | F11: ='Cash Flow Model from ROIC'!G8 -> EV/EBITDA | G11: Terminal EV/EBITDA | H11: Cost of Capital
E12: ='Cash Flow Model from ROIC'!E9 -> 6128.580155 | F12: ='Cash Flow Model from ROIC'!H8 -> 230.1379139 | G12: ='Cash Flow Model from ROIC'!K8 -> 11.23740889 | H12: ='Cash Flow Model from ROIC'!F14 -> 0.07
C14: 1 | D14: Base Case | E14: 1485.790145 | F14: 54.12815151 | G14: 10.31440752 | H14: 0.07
C15: 2 | D15: Higher Cost of Capital | E15: 520.3602515 | F15: 19.84356232 | G15: 6.876271677 | H15: 0.09
C16: 3 | D16: Lower Terminal ROIC | E16: 969.8962929 | F16: 35.80759929 | G16: 8.390879719 | H16: 0.07
C17: 4 | D17: Higher Terminal Growth | E17: 1778.936177 | F17: 64.53842716 | G17: 13.05247956 | H17: 0.07
C18: 5 | D18: Higher Short Term ROIC | E18: 1312.340582 | F18: 47.968567 | G18: 9.840424654 | H18: 0.07
C19: 6 | D19: Higher Short Term Growth | E19: 1312.340582 | F19: 47.968567 | G19: 9.840424654 | H19: 0.07

Sheet Sheet2
